Cogmind - Beta 12 @@@ ROGUE MODE // 2023.12.13 @ 11:07:15 Player: Dosh Result: Destroyed by Y-54 Guardian with Gatling Laser Performance ------------- Evolutions (3) 1500 Regions Visited (7) 1400 Robots Destroyed (99) 495 Value Destroyed (3333) 3333 Prototype IDs (25) 500 Alien Tech Used (0) 0 Bonus (928) 928 TOTAL SCORE: 8156 Bonus ------- Entered Garrisons 200 Used RIF Installer 500 Aligned with FarCom 300 Friendly Fire -72 Cogmind --------- Core Integrity 0/700 Matter 15/300 Energy 88/100 System Corruption 13% Temperature Cool (6) Movement Core (50) Location -7/Garrison Parts ------- > --- POWER (1) -------- (None) > --- PROPULSION (3) --- (None) > --- UTILITY (5) ------ Hacking Suite > --- WEAPON (4) ------- XL Autogun Subcomponent > --- INVENTORY (5) ---- Minigun Peak State ------------ > --- POWER ------------ (None) > --- PROPULSION ------- Improved Aluminum Leg > --- UTILITY ---------- Hacking Suite Hacking Suite Hacking Suite > --- WEAPON ----------- XL Autogun Array > --- INVENTORY -------- Minigun [Rating: 47] Favorites ----------- Power Light Ion Engine Engine Light Ion Engine Power Core Light Nuclear Core Propulsion Improved Treads Treads Improved Treads Leg Improved Aluminum Leg Utility Hacking Suite Storage Huge Storage Unit Hackware Hacking Suite Protection Core Shielding Weapon Assault Rifle Energy Cannon EM Pulse Cannon Ballistic Gun Assault Rifle Ballistic Cannon Improved Light Cannon Launcher Mini Grenade Launcher Build | -11 -10 -10 -10 -9 -8 -7 -7 ------- Run | Jun Mat Min Exi Min Mat Fac Gar Slots Evolved 6 | . . . . . 4 2 . Power . | . . . . . . . . Propulsion 1 | . . . . . 1 . . Utility 3 | . . . . . 3 . . Weapon 2 | . . . . . . 2 . Parts Attached 63 | 6 4 1 . 4 20 20 8 Power 6 | 1 . . . 1 2 1 1 Engine 3 | 1 . . . 1 1 . . Core 3 | . . . . . 1 1 1 Reactor . | . . . . . . . . Propulsion 18 | 2 2 . . 1 5 7 1 Treads 17 | 2 2 . . 1 5 7 . Leg 1 | . . . . . . . 1 Wheel . | . . . . . . . . Hover . | . . . . . . . . Flight . | . . . . . . . . Utility 15 | 1 2 1 . . 6 4 1 Device . | . . . . . . . . Storage 3 | 1 1 . . . 1 . . Processor . | . . . . . . . . Hackware 3 | . . . . . 2 1 . Protection 9 | . 1 1 . . 3 3 1 Artifact . | . . . . . . . . Weapon 24 | 2 . . . 2 7 8 5 Energy Gun . | . . . . . . . . Energy Cannon 1 | . . . . . . . 1 Ballistic Gun 11 | 2 . . . . 3 4 2 Ballistic Cannon 8 | . . . . 2 2 4 . Launcher 4 | . . . . . 2 . 2 Special Weapon . | . . . . . . . . Impact Weapon . | . . . . . . . . Slashing Weapon . | . . . . . . . . Piercing Weapon . | . . . . . . . . Special Melee Weapon . | . . . . . . . . Unidentified Prototypes 2 | . . . . . 1 . 1 Parts Lost 32 | . . 1 . 4 6 11 10 Power 5 | . . . . 1 2 1 1 Propulsion 9 | . . . . 1 2 4 2 Utility 9 | . . 1 . . 2 3 3 Weapon 9 | . . . . 2 . 3 4 Highest Loss Streak 9 | . . 1 . 3 2 7 9 To Critical Strikes 1 | . . . . . . 1 . Average Slot Usage (%) 91 | . 98 99 100 99 92 83 72 Engine 7 | . 14 14 14 13 6 . . Core 2 | . . . . . 1 5 4 Treads 23 | . 28 28 28 27 24 19 12 Storage 10 | . 14 14 14 14 9 7 6 Hackware 10 | . . . . . 15 17 22 Protection 13 | . 12 13 14 14 16 10 6 Ballistic Gun 16 | . 28 28 28 18 8 13 6 Ballistic Cannon 5 | . . . . 9 8 6 6 Naked Turns . | . . . . . . . . Heaviest Build 109 | 12 30 30 30 34 106 106 109 Greatest Support 68 | 40 46 46 46 46 66 68 48 Greatest Overweight (x) 7 | . . . . . 2 4 7 Average Overweight (x) . | . . . . . . 1 1 Largest Inventory Capacity 25 | 8 15 15 15 15 25 25 25 Average Capacity 19 | 7 11 15 15 15 22 25 23 Most Carried 25 | 3 13 13 15 15 20 25 21 Average Carried 15 | 1 7 12 13 13 17 22 18 Final Capacity 25 | 8 15 15 15 15 25 25 5 Final Carried 21 | 2 13 13 15 14 20 21 1 Class Distribution -------------------- 46% | Mutant 36% | Hacker-Mutant 12% | Hacker-Tank 4% | Hacker-Skirmisher Dominant Class ---------------- Mutant | -10/Materials Mutant | -10/Mines Mutant | -10/Exiles Mutant | -9/Mines Hacker-Mutant | -8/Materials Hacker-Tank | -7/Factory Hacker-Mutant | -7/Garrison Resources | -11 -10 -10 -10 -9 -8 -7 -7 ----------- Run | Jun Mat Min Exi Min Mat Fac Gar Matter Collected 2348 | 150 554 107 . 185 562 631 159 Remotely . | . . . . . . . . Salvage Created 2651 | . 785 142 . 196 805 503 220 Parts 159 | . 51 10 . 10 48 22 18 Haulers Intercepted 2 | . 1 . . . 1 . . Recyclers Shooed . | . . . . . . . . Parts Field Recycled . | . . . . . . . . Retrieved Matter . | . . . . . . . . Parts Self-Destructed . | . . . . . . . . Prevented . | . . . . . . . . Kills | -11 -10 -10 -10 -9 -8 -7 -7 ------- Run | Jun Mat Min Exi Min Mat Fac Gar Combat Hostiles Destroyed 78 | . 15 9 . 7 23 14 10 Guns 45 | . 15 9 . 6 6 5 4 Cannons 21 | . . . . 1 10 9 1 AOE 12 | . . . . . 7 . 5 Classes Destroyed 16 | . 7 . . . 8 1 . Worker 1 | . . . . . 1 . . Builder 1 | . 1 . . . . . . Tunneler 3 | . 3 . . . . . . Hauler 2 | . 1 . . . 1 . . Recycler 2 | . . . . . 1 1 . Mechanic 1 | . . . . . 1 . . Operator 6 | . 3 . . . 2 1 . Watcher 4 | . 2 . . . 2 . . Swarmer 27 | . 3 9 . 3 6 2 4 Grunt 34 | . 12 . . 4 9 6 3 Brawler 2 | . . . . . 1 1 . Duelist 3 | . . . . . 2 1 . Sentry 3 | . . . . . 2 1 . Hunter 3 | . . . . . 3 . . Programmer 6 | . . . . . . 3 3 Zionite 1 | . . . . . 1 . . Best Kill Streak 5 | . 3 3 . 3 5 4 5 Combat Bots Only 5 | . 3 3 . 3 4 4 5 Max Kills in Single Turn 3 | . 2 2 . 1 3 1 2 Gunslinging 1 | . 1 1 . . . . . Exploded 2 | . . . . . 2 . 2 Melee . | . . . . . . . . Uniques/NPCs Destroyed . | . . . . . . . . Combat | -11 -10 -10 -10 -9 -8 -7 -7 -------- Run | Jun Mat Min Exi Min Mat Fac Gar Damage Taken 5070 | . 349 199 . 324 1082 1588 1528 Core 916 | . 46 22 . 34 111 349 354 Absorbed by Shields 29 | . . . . . . . 29 Redirected to Shielding 50 | . . . . . 15 35 . Core Remaining (%) 79 | 100 . . . 59 79 . . Volleys Fired 265 | . 69 17 . 26 74 53 26 Largest 3 | . 2 2 . 2 2 3 3 Hottest 130 | . 40 40 . 78 83 98 130 Shots Fired 552 | . 138 34 . 51 144 130 55 Gun 379 | . 138 34 . 39 66 75 27 Cannon 156 | . . . . 12 66 55 23 Launcher 17 | . . . . . 12 . 5 Special . | . . . . . . . . Kinetic 533 | . 138 34 . 51 132 130 48 Thermal . | . . . . . . . . Explosive 17 | . . . . . 12 . 5 Electromagnetic 2 | . . . . . . . 2 Robot Hit Streak 12 | . 10 5 . 9 7 12 10 Robot Miss Streak 8 | . 3 8 . 3 4 3 3 Penetration Max 1 | . . . . . 1 . . Secondary Targets 7 | . 2 2 . 1 2 . . Max Gunslinging Chain 1 | . 1 1 . 1 1 . . Shots Hit Robots 337 | . 88 17 . 31 82 86 33 Core Hits 169 | . 39 9 . 12 54 34 21 Critical Kills . | . . . . . . . . Critical Parts Destroyed 2 | . . . . . 1 . 1 Critical Strikes 3 | . . . . . 2 . 1 Destroy 2 | . . . . . 1 . 1 Blast 1 | . . . . . 1 . . Melee Attacks . | . . . . . . . . Impact . | . . . . . . . . Slashing . | . . . . . . . . Piercing . | . . . . . . . . Sneak Attacks . | . . . . . . . . Combat Hostiles . | . . . . . . . . Follow-up Attacks . | . . . . . . . . Damage Inflicted 7920 | . 1188 211 . 483 2670 2009 1359 Guns 3830 | . 1153 211 . 305 654 884 623 Cannons 2444 | . . . . 178 849 1125 292 Explosions 1579 | . . . . . 1167 . 412 Melee . | . . . . . . . . Ramming 67 | . 35 . . . . . 32 Kinetic 6274 | . 1153 211 . 483 1503 2009 915 Thermal . | . . . . . . . . Explosive 1579 | . . . . . 1167 . 412 Electromagnetic . | . . . . . . . . Impact . | . . . . . . . . Slashing . | . . . . . . . . Piercing . | . . . . . . . . Highest Corruption 13 | . . . . . . 9 13 Average Corruption 9 | . . . . . . 8 10 Corruption Purged . | . . . . . . . . Corruption Blocked . | . . . . . . . . Effects 26 | . . . . . . 8 18 Message Errors 3 | . . . . . . . 3 Matter Fused 5 | . . . . . . 1 4 Heat Flow Errors 4 | . . . . . . 2 2 Energy Discharges 3 | . . . . . . 1 2 Parts Rejected 1 | . . . . . . . 1 Data Loss (minor) 1 | . . . . . . 1 . Data Loss (major) 2 | . . . . . . 1 1 Misfires 2 | . . . . . . 1 1 Alerts 3 | . . . . . . 1 2 Misdirections 1 | . . . . . . . 1 Weapon Failures 1 | . . . . . . . 1 Overload Shots . | . . . . . . . . Overflow Damage 156 | . . . . . 51 32 73 Projectiles 40 | . . . . . 5 32 3 Explosions 116 | . . . . . 46 . 70 Melee . | . . . . . . . . Knockbacks 19 | . . . . . 5 14 . Impact . | . . . . . . . . Kinetic 19 | . . . . . 5 14 . Secondary . | . . . . . . . . Self-Inflicted Damage 83 | . . . . . 73 . 10 Shots 3 | . . . . . 3 . . Rammed 19 | . 11 . . . . 1 7 Targets Rammed 25 | . 12 . . . . 1 12 Kicked 5 | . . . . . . . 5 Crushed 1 | . 1 . . . . . . Highest Temperature 352 | . 6 . . 150 162 352 94 Average Temperature 74 | . 2 . . 56 42 127 39 Received Heat Transfer 1182 | . 168 . . 138 315 237 324 Effects 2 | . . . . . . 2 . Energy Bleed 1 | . . . . . . 1 . Matter Decay 1 | . . . . . . 1 . Siege Activations . | . . . . . . . . Robots Corrupted . | . . . . . . . . Combat Hostiles . | . . . . . . . . Parts Fried . | . . . . . . . . Impact Corruptions . | . . . . . . . . Robots Melted . | . . . . . . . . Combat Hostiles . | . . . . . . . . Parts Melted . | . . . . . . . . Heat Transferred . | . . . . . . . . Parts Sabotaged . | . . . . . . . . Parts Stolen . | . . . . . . . . Parts Stripped . | . . . . . . . . Power Chain Reactions . | . . . . . . . . Missiles Intercepted . | . . . . . . . . Alert | -11 -10 -10 -10 -9 -8 -7 -7 ------- Run | Jun Mat Min Exi Min Mat Fac Gar Peak Influence 393 | . 258 248 . 125 393 181 336 Initial 149 | . . 48 . . 21 149 84 Average 182 | . 132 195 . 81 318 84 164 Maximum Alert Level 1 | . 1 1 . . 1 . 1 Low Security (%) 60 | 100 82 42 . 100 8 100 76 Level 1 39 | . 17 57 . . 91 . 23 Level 2 . | . . . . . . . . Level 3 . | . . . . . . . . Level 4 . | . . . . . . . . Level 5 . | . . . . . . . . High Security . | . . . . . . . . Max Security . | . . . . . . . . Squads Dispatched 20 | . 4 . . . 8 8 . Investigation 4 | . 1 . . . 2 1 . Extermination 2 | . . . . . . 2 . Reinforcement 7 | . 3 . . . 2 2 . Assault 1 | . . . . . 1 . . Garrison 6 | . . . . . 3 3 . Intercept . | . . . . . . . . Searches Triggered . | . . . . . . . . Construction Impeded 1 | . . . . . . 1 . Haulers Reinforced . | . . . . . . . . Active Scanning Responses . | . . . . . . . . Cargo Convoy Interrupts . | . . . . . . . . Stealth | -11 -10 -10 -10 -9 -8 -7 -7 --------- Run | Jun Mat Min Exi Min Mat Fac Gar Distress Signals 1 | . 1 . . . . . . Communications Jammed . | . . . . . . . . Distress Signals . | . . . . . . . . Times Spotted 113 | . 34 8 . 9 34 16 12 Peak Tracking Total 5 | . 4 3 . 3 4 3 5 Tactical Retreats 3 | . . . . 2 . 1 . Traps | -11 -10 -10 -10 -9 -8 -7 -7 ------- Run | Jun Mat Min Exi Min Mat Fac Gar Traps Triggered 12 | . 2 . . . 2 6 2 Indirectly . | . . . . . . . . Trap Hack Attempts . | . . . . . . . . Triggered . | . . . . . . . . Disarmed . | . . . . . . . . Reprogrammed . | . . . . . . . . Reused . | . . . . . . . . Traps Extracted . | . . . . . . . . Installed . | . . . . . . . . Triggered . | . . . . . . . . Machines | -11 -10 -10 -10 -9 -8 -7 -7 ---------- Run | Jun Mat Min Exi Min Mat Fac Gar Machines Disabled 7 | . . . . . 5 1 1 Max in Single Turn 1 | . . . . . 1 1 1 Garrison Access 1 | . . . . . 1 . . Garrison Relay 1 | . . . . . . . 1 Machines Repaired . | . . . . . . . . Machines Sabotaged . | . . . . . . . . Overloaded Fab Kills . | . . . . . . . . Hacking | -11 -10 -10 -10 -9 -8 -7 -7 --------- Run | Jun Mat Min Exi Min Mat Fac Gar Machines Accessed 15 | . 4 . 1 . 5 4 1 Terminals 10 | . 4 . . . 3 2 1 Fabricators . | . . . . . . . . Repair Stations . | . . . . . . . . Recycling Units 2 | . . . . . 2 . . Scanalyzers 1 | . . . . . . 1 . Garrison Access 1 | . . . . . . 1 . Total Hacks 39 | . 6 . 1 . 18 11 3 Successful 24 | . 3 . 1 . 13 7 . Failed 15 | . 3 . . . 5 4 3 Catastrophic 1 | . . . . . . 1 . Database Lockouts . | . . . . . . . . Manual 21 | . 7 . 1 . 11 2 . Terminals 24 | . 6 . . . 11 4 3 Fabricators . | . . . . . . . . Repair Stations . | . . . . . . . . Recycling Units 7 | . . . . . 7 . . Scanalyzers 5 | . . . . . . 5 . Garrison Access 2 | . . . . . . 2 . Terminal Hacks 6 | . 1 . 1 . 4 . . Branch Access Points 1 | . . . . . 1 . . Emergency Access Points 1 | . . . . . 1 . . Locate Traps 2 | . 1 . . . 1 . . Hauler Manifests 1 | . . . . . 1 . . EX-Prototype ID Bank 1 | . . . 1 . . . . Fabricator Hacks . | . . . . . . . . Repair Station Hacks . | . . . . . . . . Recycling Unit Hacks 7 | . . . . . 7 . . Process 3 | . . . . . 3 . . Retrieve Matter 4 | . . . . . 4 . . Scanalyzer 5 | . . . . . . 5 . Insert Component 3 | . . . . . . 3 . Analyze 2 | . . . . . . 2 . Garrison Access Hacks 1 | . . . . . . 1 . Unlock Access 1 | . . . . . . 1 . Unauthorized Hacks 5 | . 2 . . . 2 1 . Terminals 5 | . 2 . . . 2 1 . Botnet 3 | . 1 . . . 1 1 . Operators 2 | . 1 . . . 1 . . Fabricators . | . . . . . . . . Repair Stations . | . . . . . . . . Recycling Units . | . . . . . . . . Scanalyzers . | . . . . . . . . Garrison Access . | . . . . . . . . Data Cores Recovered . | . . . . . . . . Used . | . . . . . . . . Hacking Detections 13 | . 3 . . . 5 4 1 Full Trace Events 3 | . 1 . . . 1 1 . Feedback Events . | . . . . . . . . Feedback Blocked . | . . . . . . . . Robot Schematics Acquired . | . . . . . . . . Robots Built . | . . . . . . . . Authchips . | . . . . . . . . Time . | . . . . . . . . Total Robot Build Rating . | . . . . . . . . Part Schematics Acquired 2 | . . . . . . 2 . Parts Built . | . . . . . . . . Authchips . | . . . . . . . . Time . | . . . . . . . . Total Part Build Rating . | . . . . . . . . Parts Repaired . | . . . . . . . . Time . | . . . . . . . . Parts Recycled . | . . . . . . . . Recycled Matter 284 | . . . . . 284 . . Retrieved Matter 284 | . . . . . 284 . . Retrieved Components . | . . . . . . . . Parts Scanalyzed 2 | . . . . . . 2 . Part Schematics Acquired 2 | . . . . . . 2 . Parts Damaged . | . . . . . . . . Bothacking | -11 -10 -10 -10 -9 -8 -7 -7 ------------ Run | Jun Mat Min Exi Min Mat Fac Gar Used RIF Installer 1 | . . . . . . . 1 Robots Hacked . | . . . . . . . . Non-combat . | . . . . . . . . Combat . | . . . . . . . . Robot Hacks Applied . | . . . . . . . . Relay Couplers Released 6 | . . . . . 2 . 4 Machine Destruction 6 | . . . . . 2 . 4 Fabnet Peak Effective % . | . . . . . . . . Robots Rewired . | . . . . . . . . Allies Hacked . | . . . . . . . . Hacks Repelled . | . . . . . . . . Allies | -11 -10 -10 -10 -9 -8 -7 -7 -------- Run | Jun Mat Min Exi Min Mat Fac Gar Total Allies 2 | . . . . 2 . . . Largest Group 2 | . . . . 2 2 . . Highest-Rated Group 46 | . . . . 46 46 . . Highest-Rated Ally 31 | . . . . 31 31 . . Total Orders . | . . . . . . . . Ally Attacks 14 | . . . . . 14 . . Total Damage 171 | . . . . . 171 . . Kills 1 | . . . . . 1 . . Allies Corrupted . | . . . . . . . . Allies Melted . | . . . . . . . . Intel | -11 -10 -10 -10 -9 -8 -7 -7 ------- Run | Jun Mat Min Exi Min Mat Fac Gar Robot Analysis Total . | . . . . . . . . Derelict Logs Recovered 1 | . . . . 1 . . . Drone Launches . | . . . . . . . . Drone Recoveries . | . . . . . . . . Exploration | -11 -10 -10 -10 -9 -8 -7 -7 ------------- Run | Jun Mat Min Exi Min Mat Fac Gar Turns Passed 6982 | 85 1428 321 353 622 2221 1495 457 Spaces Moved 2880 | 48 735 168 220 304 798 481 126 Core 7 | 3 . . . . . . 4 Treads 2866 | 45 735 168 220 304 798 481 115 Legs 7 | . . . . . . . 7 Wheels . | . . . . . . . . Hover . | . . . . . . . . Flight . | . . . . . . . . Fastest Speed 50 | 50 160 160 160 160 160 235 50 Average Speed 196 | 153 160 160 160 160 220 247 279 Slowest Speed 610 | 160 160 160 160 160 320 480 610 Overloaded Moves . | . . . . . . . . Propulsion Burnouts . | . . . . . . . . Robots Hopped . | . . . . . . . . Cave-ins Triggered . | . . . . . . . . Exploration Rate (%) 41 | 4 95 31 62 56 47 11 26 Regions Visited 7 Branch Regions 3 Pre-discovered Areas 1 | . . . . 1 . . . Known Exits Taken 1 | . . . . . . 1 . Unknown Exits Taken 6 | 1 1 1 1 1 1 . . Scrap Searched 3 | . . 1 . 2 . . . Spaces Dug . | . . . . . . . . Terrain Destroyed 94 | . . . . 1 78 3 12 Melee . | . . . . . . . . Projectile 10 | . . . . 1 6 3 . AOE 84 | . . . . . 72 . 12 Terrain Rammed . | . . . . . . . . Walls Destroyed . | . . . . . . . . Machines Disabled . | . . . . . . . . Actions | -11 -10 -10 -10 -9 -8 -7 -7 --------- Run | Jun Mat Min Exi Min Mat Fac Gar Total 3693 | 57 843 186 222 389 1121 697 178 Wait 410 | . 8 . . 53 214 135 . Move 2873 | 47 734 167 219 303 797 480 126 Hop . | . . . . . . . . Pick Up 44 | 3 12 1 1 3 14 8 2 Fast Attach 26 | 6 1 . . . 6 12 1 Attach 26 | . . 1 . 4 7 7 7 Detach 1 | . . . . . . . 1 Swap 11 | . 3 . . . 7 1 . Drop 10 | 1 4 . 2 . 2 . 1 Fire 265 | . 69 17 . 26 74 53 26 Melee . | . . . . . . . . Ram 7 | . . . . . . . 7 Kick 5 | . . . . . . . 5 Crush 13 | . 12 . . . . 1 . Escape Stasis 2 | . . . . . . . 2 Rewire . | . . . . . . . . Trap . | . . . . . . . . Miscellaneous . | . . . . . . . . Route ------- -11/Junkyard -10/Materials (discovered 4 exits: [*Mat x2] / [*Min x2]) -10/Mines (discovered 2 exits: [*Mat] / *Exi) -10/Exiles -9/Mines -8/Materials -7/Factory (discovered 2 exits: [*Fac] / Gar) -7/Garrison History --------- Turn | Location | Event 31 | -11/Junkyard | Discovered new exit (range 14) 86 | -11/Junkyard | Entered Materials 319 | -10/Materials | Build established: Mutant 509 | -10/Materials | Discovered new exit (range 16) 691 | -10/Materials | Discovered new exit (range 11) 922 | -10/Materials | Discovered new exit (range 15) 1216 | -10/Materials | Discovered new exit (range 16) 1514 | -10/Materials | Entered Mines 1726 | -10/Mines | Found a damaged Exp. Sensor Array with a note attached 1730 | -10/Mines | Found Prototype Device 1753 | -10/Mines | Discovered new exit (range 9) 1827 | -10/Mines | Deemed a non-threat by the Exiles lab entrance 1828 | -10/Mines | Discovered new exit (range 5) 1835 | -10/Mines | Entered Exiles 1877 | -10/Exiles | Met 8R-AWN 1906 | -10/Exiles | Met EX-HEX 1951 | -10/Exiles | Met EX-BIN 1970 | -10/Exiles | Aligned with FarCom system 1971 | -10/Exiles | Given EX-Vault access code 2013 | -10/Exiles | Opened EX-Vault 2027 | -10/Exiles | Found XL Autogun Array 2058 | -10/Exiles | Warned to stay clear of 0b10 Research branches 2105 | -10/Exiles | Met EX-DEC 2172 | -10/Exiles | Discovered new exit (range 12) 2188 | -10/Exiles | Left Exiles lab with XL Autogun Array 2188 | -10/Exiles | Entered Mines 2249 | -9/Mines | Learned location of Zion (-7) 2636 | -9/Mines | Lost 3 parts (1n2w) 2754 | -9/Mines | Discovered new exit (range 12) 2810 | -9/Mines | Entered Materials 2810 | -8/Materials | Accompanied by 2 allies 2810 | -8/Materials | Evolved 4 slots: Propulsion x1, Utility x3 2815 | -8/Materials | Led the pair of lost Derelicts to an unsafe place 2848 | -8/Materials | Garrison activated, responded to threat 3542 | -8/Materials | Build established: Hacker-Mutant 3597 | -8/Materials | Discovered new exit (range 3) 5031 | -8/Materials | Entered Factory 5031 | -7/Factory | Evolved 2 slots: Weapon x2 5404 | -7/Factory | Build established: Hacker-Tank 5696 | -7/Factory | Discovered new exit (range 15) 5920 | -7/Factory | Garrison activated, responded to threat 6014 | -7/Factory | Lost 3 parts (2n1u) 6312 | -7/Factory | Lost 7 parts (1p1n2u3w) 6523 | -7/Factory | Identified exit to Garrison 6526 | -7/Factory | Entered Garrison 6547 | -7/Garrison | Build established: Hacker-Mutant 6590 | -7/Garrison | Triggered checkpoint 6657 | -7/Garrison | Installed Relay Interface Framework 6673 | -7/Garrison | Garrison Relay disabled 6690 | -7/Garrison | System corruption reached 10% 6868 | -7/Garrison | Triggered checkpoint 6915 | -7/Garrison | Triggered checkpoint 6918 | -7/Garrison | Core integrity fell below 50% 6926 | -7/Garrison | Triggered checkpoint 6973 | -7/Garrison | Core integrity fell below 20% 6983 | -7/Garrison | Destroyed by Y-54 Guardian with Gatling Laser Last Messages --------------- 06951_ Mic. Nuclear Core destroyed. 06957_ Hacking Suite destroyed. 06959_ Kicked Y-54 Guardian out of the way. 06961_ Kicked Y-54 Guardian. 06965_ The unstable cave ceiling collapses. 06966_ Kicked Y-54 Guardian. 06967_ The unstable cave ceiling collapses. 06968_ Kicked Y-54 Guardian. 06969_ System corrupted: Imp. Aluminum Leg rejected. 06969_ Destroyed Imp. Heat Sink. 06970_ Slammed into Y-54 Guardian. XL Autogun Array falls apart. 06971_ The unstable cave ceiling collapses. 06973_ Slammed into Y-54 Guardian. 06975_ Hacking Suite destroyed. 06976_ Slammed into Y-54 Guardian. 06977_ Destabilizing: Core damaged (-35). 06978_ Slammed into Y-54 Guardian. 06981_ Acquired Prototype Ballistic Gun. 06981_ Identified XL Autogun Subcomponent. Map ----- +----------------------------------------------------+ | ????????????# !"#????????????????????????????????? | | ????????????# #"#????????????????????????????????? | | ????????????# ###????????????????????????????????? | | ????????????# #??????????????????????????????????? | | ????????????# #??????????????????????????????????? | | ????????????# #??????????????????????????????????? | | ??????????### #??????????????????????????????????? | | ??????????# #??????????????????????????????????? | | ??????????# #??????????????????????????????????? | | #######???# #??????????????????????????????????? | | #???### #??????????????????????????????????? | | ^^#?????# #??????????????????????????????????? | | #### ^####### ######?????????????????????????????? | | ???# "#?????????????????????????????? | | ???# ##########"T"#?????????????????????????????? | | ???# #????????#####?????????????????????????????? | | ???# #??????????????????????????????????????????? | | ???# #??????????????????????????????????????????? | | ???# #??????????????????????????????????????????? | | ???# #??????????????????###?????????????????????? | | ???# #??????????????????# ?????????????????????? | | ???# #???????#???######?# #?????????????????????? | | ???# #??????## #?# !!!#?# #?????????????????????? | | ???# #??????## # #!|*!###+######## #??????????? | | ???# ######## ]!!!*[ #??????????? | | ???# [ !![/][@ Y #??????????? | | ???# *% %[ ! =Y[ #??????????? | | ???########### | * ## ###########??????????? | | ?????????????#^ ## #????????????????????? | | ???????????# ^^ ^ ???????????????????? | | ???????????# ^ #??????????????????? | | ???????????# ^ #??????????????????? | | ???????????# #??????????????????? | | ???????????### # ## ###??????????????????? | | ?????????????# # ## #????????????????????? | | ???????????? ????????????????????? | | ??????????? ????????????????????? | | ???????????### % ##???????????????????? | | ?????????????### # ######????????????????????? | | ??????????????? ### ??????????????????????????? | | ??????????????????#####??????????????????????????? | | ?????????????????????????????????????????????????? | | ?????????????????????????????????????????????????? | | ?????????????????????????????????????????????????? | | ?????????????????????????????????????????????????? | | ?????????????????????????????????????????????????? | | ?????????????????????????????????????????????????? | | ?????????????????????????????????????????????????? | | ?????????????????????????????????????????????????? | | ?????????????????????????????????????????????????? | +----------------------------------------------------+ Best States ------------- Heat Dissipation 34 Energy Generation 18 Energy Capacity 160 Matter Stores 300 Matter Capacity 300 Sight Range 16 Terrain Scan Density 10 Armor Coverage 225 Core Shielding 20 Evasion (%) 50 Recoil Reduction 3 Offensive Hacking 30 Item Schematics ----------------- Hacking Suite | -7/Factory | Scanalyzed Med. Treads | -7/Factory | Scanalyzed Robot Schematics ------------------ None Fabricated ------------ Nothing Alien Tech Used ----------------- None Achievements -------------- None Challenges ------------ None Game ------ Seed WaveSmartbombLauncher Manual? 0 Play Time 00:30:24 Cumulative 57.7 hours Start 2023.12.13 @ 10:38:29 End 2023.12.13 @ 11:07:15 Sessions 1 Manual Loads 0 Difficulty Rogue Special Mode None Game No. 87 Rogue 87 Adventurer 0 Explorer 0 Win Type - Total 1 Types 1/0/0/0/0/0/0/0/0 Lore% 28 Gallery% 43 Achievement% 37 Wizard Run 0 Options --------- ASCII 0 Keyboard 1 Movement Numpad Keybinds 0 Fullscreen 2 Font 18/SmallcapsGlow Map View 76x50 Tactical HUD 1 Map Filters NONE Filters NONE Steam 1 RUN: 1ee684cc-0142-4e62-bd86-c227ed517ab4